bitfinex-derivatives/quotes_SOLF0:USTF0_20250101
["timestamp","ask_amount","ask_price","bid_price","bid_amount"]
[1735739055183,11.1559984,190.18,190.14,2.6346]
[1735739056481,8.5216984,190.18,190.15,2.6346]
[1735739057783,8.5216984,190.18,190.13,8.5216984]
[1735739057980,8.5216984,190.18,190.13,2.6347]
[1735739058180,8.5216984,190.16,190.11,2.98]
[1735739059485,11.1561984,190.16,190.11,2.6351]
[1735739061385,8.5216984,190.16,190.09,8.5216984]
[1735739061582,2.6347,190.14,190.09,11.1569984]
[1735739062086,11.1563984,190.14,190.09,11.1569984]
[1735739062283,2.635,190.13,190.09,2.6353]
[1735739064183,8.5216984,190.12,190.07,2.6356]
[1735739064889,8.5216984,190.12,190.05,8.5216984]
[1735739065087,8.5216984,190.12,190.08,2.6355]
[1735739066484,11.1566984,190.12,190.08,2.6355]
[1735739066779,8.5216984,190.1,190.01,4.6084]
[1735739067185,8.5216984,190.08,190.02,8.5216984]
[1735739068483,8.5216984,190.08,190.03,2.6362]
[1735739069990,8.5216984,190.08,190.02,8.5216984]
[1735739070192,11.1572984,190.08,190.0,8.5216984]
[1735739071485,11.1572984,190.08,190.02,2.6364]
[1735739073289,8.5216984,190.08,190.0,8.5216984]
[1735739073488,8.5216984,190.08,190.04,2.6361]
[1735739075596,8.5216984,190.1,190.06,2.6358]
[1735739075793,8.5216984,190.1,190.04,8.5216984]
[1735739077396,8.5216984,190.1,190.05,2.6359]
[1735739080406,11.1569984,190.1,190.05,2.6359]
[1735739086614,8.5216984,190.1,190.04,8.5216984]
[1735739086816,8.5216984,190.1,190.06,2.6357]
[1735739088416,11.1569984,190.1,190.06,2.6357]
[1735739090812,8.5216984,190.1,190.06,2.6357]
[1735739091018,8.5216984,190.1,190.07,2.6356]
[1735739092021,11.5016984,190.12,190.07,2.6356]
[1735739092520,14.1366984,190.12,190.07,2.6356]
[1735739092719,11.1566984,190.12,190.07,2.6356]
[1735739093018,2.6352,190.11,190.07,2.6356]
[1735739095424,8.5216984,190.1,190.07,2.6356]
[1735739095921,8.5216984,190.1,190.06,2.6358]
[1735739097220,11.1569984,190.1,190.06,2.6358]
[1735739098720,2.6353,190.1,190.06,2.6358]
[1735739103022,62.82903885,190.15,190.06,8.5216984]
[1735739103222,59.68283885,190.15,190.08,8.5216984]
[1735739103433,58.12603885,190.15,190.08,8.5216984]
[1735739103629,2.6347,190.14,190.09,2.6353]
[1735739104029,2.6347,190.14,190.08,8.5216984]
[1735739104225,2.6347,190.14,190.1,2.6352]
[1735739105027,2.635,190.12,190.08,11.1571984]
[1735739106124,8.5216984,190.14,190.04,2.98]
[1735739106125,8.5216984,190.14,190.06,8.5216984]
[1735739106325,8.5216984,190.12,190.06,8.5216984]
[1735739107032,8.5216984,190.14,190.06,8.5216984]
[1735739107329,8.5216984,190.14,190.08,8.5216984]
[1735739108533,2.6349,190.13,190.09,2.6353]
[1735739108736,8.5216984,190.16,190.08,8.5216984]
[1735739108935,11.5016984,190.18,190.1,8.5216984]
[1735739109130,2.6343,190.17,190.13,2.6348]
[1735739110138,8.5216984,190.18,190.13,2.6348]
[1735739110332,11.1558984,190.18,190.13,2.6348]
[1735739111339,52.07460974,190.19,190.14,2.6347]
[1735739111638,52.07460974,190.19,190.14,11.1563984]
[1735739112039,52.07460974,190.19,190.15,2.6345]
[1735739112240,2.634,190.19,190.15,2.6345]
[1735739112443,8.5216984,190.2,190.15,2.6345]
[1735739113235,2.6337,190.22,190.16,8.5216984]
[1735739114134,2.6335,190.23,190.18,2.6341]
[1735739114741,11.5016984,190.24,190.18,2.6341]
[1735739114742,2.6336,190.22,190.18,2.6341]
[1735739115241,2.6336,190.22,190.17,2.6343]
[1735739116543,2.6335,190.23,190.18,2.634]
[1735739116741,2.6335,190.23,190.18,8.5216984]
[1735739116939,8.5216984,190.26,190.2,8.5216984]
[1735739117339,11.1548984,190.26,190.22,2.6336]
[1735739117540,11.1548984,190.26,190.2,11.5016984]
[1735739118445,11.1548984,190.26,190.21,2.6337]
[1735739119035,2.6332,190.26,190.21,2.6337]
[1735739119641,2.6333,190.25,190.2,14.1355984]
[1735739120043,8.5216984,190.26,190.17,3.0497]
[1735739120240,8.5216984,190.26,190.18,8.5216984]
[1735739120944,8.5216984,190.26,190.17,3.0497]
[1735739121141,8.5216984,190.24,190.16,4.6231]
[1735739121347,8.5216984,190.24,190.16,2.98]
[1735739121646,8.5216984,190.24,190.17,8.5216984]
[1735739121841,2.6336,190.22,190.17,11.1559984]
[1735739122544,2.6336,190.22,190.18,2.6341]
[1735739123049,2.6335,190.23,190.18,2.6341]
[1735739123247,11.5016984,190.25,190.17,8.5216984]
[1735739123447,8.5216984,190.23,190.15,2.98]
[1735739123648,2.6337,190.21,190.16,8.5216984]
[1735739123844,2.98,190.25,190.18,2.6342]
[1735739124348,8.5216984,190.23,190.18,2.6342]
[1735739124545,8.5216984,190.23,190.19,2.634]
[1735739124849,11.5016984,190.25,190.17,8.5216984]
[1735739125248,8.5216984,190.25,190.19,8.5216984]
[1735739125446,8.5216984,190.27,190.19,8.5216984]
[1735739125948,11.1546984,190.27,190.22,2.6335]
[1735739126345,2.633,190.27,190.21,8.5216984]
[1735739127443,2.633,190.27,190.23,2.6335]
[1735739127641,2.633,190.27,190.21,8.5216984]
[1735739128051,2.633,190.27,190.22,2.6335]
[1735739129354,8.5216984,190.26,190.2,2.6338]
[1735739129645,10.0263984,190.26,190.2,2.6338]
[1735739132457,2.6332,190.25,190.2,2.6338]
[1735739132647,10.0263984,190.26,190.19,8.5216984]
[1735739132845,8.5216984,190.28,190.21,8.5216984]
[1735739134447,8.5216984,190.28,190.24,2.6332]
[1735739136050,11.1544984,190.28,190.24,2.6332]
[1735739136251,11.1544984,190.28,190.23,2.6334]
[1735739136857,2.6328,190.28,190.23,2.6334]
[1735739137054,11.1544984,190.28,190.23,2.6334]
[1735739137852,11.1544984,190.28,190.21,8.5216984]
[1735739138057,11.1544984,190.28,190.24,2.6333]
[1735739138457,11.1544984,190.28,190.21,8.5216984]
[1735739138458,8.5216984,190.28,190.21,8.5216984]
[1735739139665,11.1544984,190.28,190.23,2.6333]
[1735739143764,2.6331,190.26,190.22,2.6336]
[1735739144366,2.6329,190.27,190.22,2.6336]
[1735739144865,8.5216984,190.26,190.18,8.5216984]
[1735739145066,2.6335,190.24,190.17,2.98]
[1735739145270,2.6335,190.24,190.18,8.5216984]
[1735739145763,2.6335,190.24,190.19,2.6339]
[1735739145958,2.6336,190.22,190.18,8.5216984]
[1735739148073,2.98,190.26,190.18,8.5216984]
[1735739148370,2.6334,190.24,190.18,8.5216984]
[1735739150567,2.6334,190.24,190.2,2.6339]
[1735739155066,2.6334,190.24,190.18,11.1556984]
[1735739155571,8.5216984,190.23,190.15,8.5216984]
[1735739155966,8.5216984,190.21,190.15,8.5216984]
[1735739156166,8.5216984,190.21,190.14,2.98]
[1735739156365,8.5216984,190.21,190.15,8.5216984]
[1735739156565,11.1554984,190.21,190.16,2.6343]
[1735739156767,8.5216984,190.21,190.16,2.6343]
[1735739156967,8.5216984,190.21,190.14,8.5216984]
[1735739157473,2.634,190.2,190.15,2.6345]
[1735739157870,8.5216984,190.21,190.14,8.5216984]
[1735739158170,11.1554984,190.21,190.16,2.6343]
[1735739158868,11.1554984,190.21,190.17,2.6343]
[1735739159771,2.6339,190.2,190.16,2.6343]
[1735739160572,8.5216984,190.21,190.14,8.5216984]
[1735739160872,2.6336,190.22,190.16,8.5216984]
[1735739161067,11.6248984,190.24,190.16,8.5216984]
[1735739161975,3.1032,190.24,190.18,8.5216984]
[1735739162276,10.1388984,190.25,190.18,8.5216984]
[1735739162473,12.7720984,190.25,190.2,2.6339]
[1735739163276,12.7720984,190.25,190.21,2.6337]
[1735739163475,10.1388984,190.25,190.18,8.5216984]
[1735739163681,2.6333,190.24,190.18,8.5216984]
[1735739164276,2.6333,190.24,190.19,2.6339]
[1735739164871,8.5216984,190.23,190.18,8.5216984]
[1735739165269,8.5216984,190.23,190.16,8.5216984]
[1735739165472,2.6339,190.2,190.16,8.5216984]
[1735739165673,2.6339,190.2,190.16,11.1560984]
[1735739167782,8.5216984,190.23,190.16,8.5216984]
[1735739167975,2.6338,190.21,190.17,2.6343]
[1735739168279,8.5216984,190.23,190.16,8.5216984]
[1735739168778,8.5216984,190.23,190.2,2.6338]
[1735739168972,2.6334,190.24,190.2,2.6338]
[1735739169169,10.1388984,190.25,190.18,8.5216984]
[1735739169577,10.1388984,190.25,190.22,2.6335]
[1735739169578,8.5216984,190.25,190.22,2.6335]
[1735739169772,2.633,190.26,190.22,2.6335]
[1735739171076,5.6128,190.28,190.2,8.5216984]
[1735739171277,5.6128,190.28,190.22,8.5216984]
[1735739171472,2.6328,190.28,190.22,8.5216984]
[1735739171873,8.5216984,190.27,190.22,8.5216984]
[1735739172475,8.5216984,190.27,190.24,2.6333]
[1735739174883,8.5216984,190.27,190.23,2.6334]
[1735739175775,14.3452984,190.29,190.25,2.6332]
[1735739175975,5.8236,190.29,190.25,2.6332]
[1735739176574,58.12603885,190.33,190.26,8.5216984]
[1735739176779,11.5016984,190.32,190.26,8.5216984]
[1735739176979,8.5216984,190.32,190.26,8.5216984]
[1735739177286,8.5216984,190.32,190.2,4.6359]
[1735739177487,8.5216984,190.32,190.25,8.5216984]
[1735739178483,11.1538984,190.32,190.27,2.6329]
[1735739179488,8.5216984,190.34,190.27,8.5216984]
[1735739180289,2.6319,190.34,190.29,11.1541984]
[1735739180490,8.5216984,190.35,190.29,8.5216984]
[1735739181390,8.5216984,190.35,190.31,2.6323]
[1735739181787,8.7303,190.36,190.31,2.6323]
[1735739181987,5.7503,190.36,190.31,2.6323]
[1735739182182,8.5216984,190.35,190.31,2.6323]
[1735739182387,11.1534984,190.35,190.3,2.6325]
[1735739182589,8.5216984,190.33,190.26,8.5216984]
[1735739184192,11.1537984,190.33,190.28,2.6327]
[1735739185990,8.5216984,190.33,190.28,2.6327]
[1735739186291,8.5216984,190.31,190.24,11.5016984]
[1735739186689,2.6326,190.3,190.25,2.6332]
[1735739187794,2.6326,190.3,190.26,2.633]
[1735739188197,8.5216984,190.31,190.24,8.5216984]
[1735739188391,2.6326,190.29,190.25,2.6332]
[1735739189094,8.5216984,190.31,190.24,8.5216984]
[1735739189396,2.6325,190.3,190.26,2.633]
[1735739191199,14.1337984,190.33,190.29,2.6326]
[1735739191594,11.1537984,190.33,190.29,2.6326]
[1735739192096,8.5216984,190.33,190.29,2.6326]
[1735739192291,2.632,190.34,190.29,2.6326]
[1735739193192,8.5216984,190.35,190.32,2.6322]
[1735739193797,8.5216984,190.35,190.28,8.5216984]
[1735739193998,8.5216984,190.35,190.3,2.6324]
[1735739193999,11.1534984,190.35,190.3,2.6324]
[1735739194897,2.6319,190.34,190.3,2.6324]
[1735739195295,8.5216984,190.35,190.3,2.6324]
[1735739195888,11.1534984,190.35,190.3,2.6324]
[1735739196598,11.1532984,190.37,190.31,2.6322]
[1735739196800,11.1532984,190.37,190.3,8.5216984]
[1735739198297,2.6318,190.35,190.31,2.6323]
[1735739198492,6.0633,190.4,190.3,8.5216984]
[1735739198702,8.5216984,190.36,190.3,8.5216984]
[1735739199495,8.5216984,190.36,190.32,2.6322]
[1735739199698,2.6316,190.37,190.32,2.6322]
[1735739199898,11.1532984,190.37,190.32,2.6322]
[1735739203002,2.6317,190.36,190.3,8.5216984]
[1735739203204,8.5216984,190.35,190.29,2.6325]
[1735739204404,2.6321,190.33,190.29,2.6325]
[1735739205398,2.6321,190.33,190.28,14.2629984]
[1735739205797,2.6322,190.32,190.28,14.2629984]
[1735739206803,2.6322,190.32,190.28,11.6302984]
[1735739207003,2.6322,190.32,190.29,2.6326]
[1735739208606,2.6319,190.34,190.3,2.6325]
[1735739212106,70.61289106,190.39,190.29,2.6326]
[1735739212107,11.1538984,190.33,190.29,2.6326]
[1735739212609,2.6325,190.3,190.26,5.593]
[1735739214809,2.6325,190.3,190.26,2.633]
[1735739215809,2.6325,190.3,190.26,11.1546984]
[1735739216910,2.6325,190.3,190.27,2.6329]
[1735739217112,8.5216984,190.33,190.27,2.6329]
[1735739217113,2.6324,190.31,190.27,2.6329]
[1735739219908,2.6324,190.31,190.26,8.5216984]
[1735739220111,2.6324,190.31,190.28,2.6328]
[1735739220813,2.6322,190.32,190.28,2.6328]
[1735739221208,8.5216984,190.33,190.23,50.12350414]
[1735739221407,11.1545984,190.27,190.23,2.6334]
[1735739221913,8.5216984,190.27,190.23,2.6334]
[1735739222111,8.5216984,190.27,190.22,2.6336]
[1735739223008,11.1545984,190.27,190.22,2.6336]
[1735739224017,8.5216984,190.27,190.23,2.6333]
[1735739224411,8.5216984,190.29,190.21,8.5216984]
[1735739224714,8.5216984,190.29,190.25,2.6331]
[1735739226812,2.6325,190.3,190.25,2.6331]
[1735739227007,4.6544,190.34,190.27,8.5216984]
[1735739227008,62.78043885,190.34,190.27,8.5216984]
[1735739227515,63.88643885,190.34,190.3,2.6324]
[1735739227912,5.7604,190.34,190.3,2.6324]
[1735739229314,5.7604,190.34,190.29,8.5216984]
[1735739229513,5.7604,190.34,190.29,11.1542984]
[1735739230216,8.5216984,190.33,190.25,11.4816984]
[1735739230413,8.5216984,190.33,190.25,8.5216984]
[1735739230818,2.6325,190.31,190.26,2.6329]
[1735739231722,11.1541984,190.31,190.26,2.6329]
[1735739234618,8.5216984,190.31,190.27,2.6328]
[1735739234823,2.6322,190.32,190.25,8.5216984]
[1735739235424,3.1284,190.34,190.24,2.96]
[1735739235425,3.1284,190.34,190.27,8.5216984]
[1735739235625,2.632,190.34,190.27,8.5216984]
[1735739235827,2.632,190.34,190.29,8.5216984]
[1735739236127,11.1533984,190.36,190.29,8.5216984]
[1735739236331,11.1533984,190.36,190.3,2.96]
[1735739237030,11.1533984,190.36,190.31,2.6323]
[1735739237832,2.6317,190.36,190.31,2.6323]
[1735739238032,8.5216984,190.36,190.31,2.6323]
[1735739238226,2.6318,190.35,190.3,5.5925]
[1735739239535,2.6318,190.35,190.31,2.6323]
[1735739240629,8.5216984,190.36,190.31,2.6323]
[1735739241232,3.1622,190.39,190.3,2.96]
[1735739241426,1.6039,190.41,190.32,8.5216984]
[1735739241630,58.12603885,190.42,190.37,8.5216984]
[1735739241832,58.12603885,190.42,190.37,11.4816984]
[1735739242032,58.12603885,190.42,190.37,2.96]
[1735739242731,11.1523984,190.43,190.38,2.6313]
[1735739243437,8.5216984,190.43,190.39,2.6312]
[1735739243839,2.6306,190.44,190.39,2.6312]
[1735739244140,8.5216984,190.43,190.38,8.5216984]
[1735739245531,2.6309,190.42,190.38,8.5216984]
[1735739246838,2.6307,190.44,190.38,11.1530984]
[1735739247031,8.5216984,190.47,190.4,8.5216984]
[1735739247238,8.5216984,190.49,190.42,8.5216984]
[1735739247437,2.6301,190.48,190.43,2.6307]
[1735739247740,8.5216984,190.51,190.44,8.5216984]
[1735739248337,2.6299,190.49,190.44,8.5216984]
[1735739248840,2.63,190.48,190.43,2.6307]
[1735739249040,8.5216984,190.49,190.42,14.1124984]
[1735739249241,8.5216984,190.49,190.43,2.96]
[1735739249841,8.5216984,190.47,190.43,2.96]
[1735739250444,2.6305,190.45,190.43,2.96]
[1735739251439,8.5216984,190.45,190.38,3.1084]
[1735739251642,8.5216984,190.43,190.38,2.96]
[1735739251843,8.5216984,190.43,190.37,8.5216984]
[1735739252043,8.5216984,190.43,190.37,11.4816984]
[1735739252244,2.6308,190.42,190.37,14.1131984]
[1735739253444,2.631,190.41,190.37,11.4816984]
[1735739255045,8.5216984,190.43,190.37,11.4816984]
[1735739255240,2.6307,190.44,190.37,11.4816984]
[1735739255651,11.1521984,190.45,190.4,2.6311]
[1735739256946,2.6306,190.44,190.39,11.1528984]
[1735739260149,2.6306,190.44,190.39,8.5216984]
[1735739260850,2.6304,190.45,190.39,8.5216984]
[1735739261051,8.5216984,190.49,190.41,8.5216984]
[1735739261250,8.5216984,190.51,190.43,8.5216984]
[1735739261448,2.6301,190.48,190.43,8.5216984]
[1735739262450,2.6301,190.48,190.43,11.1523984]
[1735739262646,2.6302,190.47,190.43,8.5216984]
[1735739262954,2.6302,190.47,190.42,2.96]
[1735739262955,8.5216984,190.47,190.42,2.96]
[1735739263154,2.6302,190.47,190.43,8.5216984]
[1735739263354,41.67752139,190.53,190.45,8.5216984]
[1735739263557,8.5216984,190.52,190.45,8.5216984]
[1735739263753,2.6302,190.47,190.42,2.96]
[1735739264052,8.5216984,190.5,190.43,8.5216984]
[1735739264453,2.63,190.48,190.43,8.5216984]
[1735739264655,8.5216984,190.5,190.43,8.5216984]
[1735739265453,2.63,190.48,190.43,8.5216984]
[1735739265853,8.5216984,190.5,190.43,8.5216984]
[1735739266055,2.6301,190.47,190.43,8.5216984]
[1735739269058,2.6305,190.45,190.42,2.96]
[1735739272761,8.5216984,190.48,190.42,2.96]
[1735739273064,2.6303,190.46,190.42,5.5908]
[1735739273360,11.1517984,190.48,190.42,2.96]
[1735739273663,11.1517984,190.48,190.43,8.5216984]
[1735739273664,2.6301,190.48,190.43,8.5216984]
[1735739273860,2.6301,190.48,190.44,2.6305]
[1735739275765,8.5216984,190.5,190.44,2.6305]
[1735739276666,38.71752139,190.53,190.44,2.6305]
[1735739276868,8.5216984,190.5,190.44,2.6305]
[1735739277771,2.63,190.49,190.44,2.6305]
[1735739280667,8.5216984,190.47,190.39,1.4897]
[1735739280868,8.5216984,190.47,190.39,11.4816984]
[1735739281268,2.6305,190.45,190.4,2.6311]
[1735739281469,2.6305,190.45,190.39,11.4816984]
[1735739282671,2.6305,190.45,190.41,2.6309]
[1735739284572,2.6305,190.45,190.41,11.1525984]
[1735739285874,2.6305,190.45,190.41,2.6309]
[1735739287578,2.6306,190.44,190.4,2.6311]
[1735739288672,8.5216984,190.42,190.33,13.3014984]
[1735739288870,8.5216984,190.4,190.34,2.96]
[1735739289678,2.6312,190.39,190.35,2.6317]
[1735739291376,11.1528984,190.4,190.35,2.6317]
[1735739292079,2.6308,190.42,190.38,2.6314]
[1735739295289,8.5216984,190.43,190.36,8.5216984]
[1735739295487,8.5216984,190.43,190.36,2.6316]
[1735739295684,8.5216984,190.41,190.36,2.6316]
[1735739296484,2.6311,190.4,190.36,2.6316]
[1735739297379,11.1526984,190.41,190.36,2.6316]
[1735739298392,2.631,190.41,190.37,2.6315]
[1735739299689,8.5216984,190.43,190.35,2.96]
[1735739299884,2.6312,190.4,190.35,5.5917]
[1735739300082,8.5216984,190.41,190.35,5.5917]
[1735739301489,2.6313,190.39,190.35,5.5917]
[1735739303897,2.6311,190.4,190.36,2.6316]
[1735739304390,8.5216984,190.43,190.35,2.96]
[1735739305191,2.6313,190.39,190.35,5.5917]
[1735739306090,2.6313,190.39,190.35,2.6317]
[1735739306592,11.1526984,190.41,190.36,2.6316]
[1735739306790,8.5216984,190.41,190.36,2.6316]
[1735739308488,2.6311,190.4,190.36,2.6316]
[1735739311991,2.6311,190.4,190.36,11.1532984]
[1735739312196,2.6309,190.42,190.37,2.6314]
[1735739312988,2.6309,190.42,190.36,8.5216984]
[1735739313293,1.6346,190.46,190.41,2.6309]
[1735739313994,4.265,190.46,190.41,2.6309]
[1735739314193,1.6346,190.46,190.39,2.96]
[1735739314390,2.6306,190.44,190.4,2.6311]
[1735739316289,1.6346,190.46,190.4,2.6311]
[1735739316290,2.6304,190.45,190.4,2.6311]
[1735739317997,8.5216984,190.47,190.4,2.6311]
[1735739318199,2.6306,190.44,190.4,2.6311]
[1735739321694,8.5216984,190.45,190.39,11.4816984]
[1735739321901,8.5216984,190.45,190.39,2.96]
[1735739322402,2.6309,190.42,190.39,2.96]
[1735739324204,2.6309,190.42,190.39,11.4816984]
[1735739326004,2.6306,190.44,190.4,2.6311]
[1735739331112,2.6305,190.45,190.4,2.6311]
[1735739331712,8.5216984,190.47,190.4,2.6311]
[1735739331713,2.6306,190.44,190.4,2.6311]
[1735739332714,61.16763885,190.5,190.39,11.4816984]
[1735739333012,8.5216984,190.45,190.39,11.4816984]
[1735739333214,2.631,190.41,190.39,11.4816984]
[1735739333511,8.5216984,190.45,190.39,8.5216984]
[1735739333711,2.6308,190.42,190.39,8.5216984]
[1735739337211,8.5216984,190.45,190.39,8.5216984]
[1735739337407,2.6307,190.43,190.39,8.5216984]
[1735739338008,2.6307,190.43,190.39,11.1527984]
[1735739338914,2.6309,190.42,190.37,14.1130984]
[1735739339315,8.5216984,190.45,190.37,11.4816984]
[1735739340420,2.6307,190.43,190.39,2.6312]
[1735739341621,2.6307,190.43,190.39,11.1528984]
[1735739341818,8.5216984,190.48,190.39,8.5216984]
[1735739342219,2.6303,190.46,190.42,2.6308]
[1735739343123,2.6303,190.46,190.41,11.1525984]
[1735739343324,8.5216984,190.48,190.41,11.1525984]
[1735739343523,2.6304,190.45,190.41,11.1525984]
[1735739344124,8.5216984,190.48,190.41,8.5216984]
[1735739344423,11.1516984,190.48,190.43,2.6306]
[1735739344628,11.1516984,190.48,190.41,8.5216984]
[1735739344822,2.6299,190.49,190.43,8.5216984]
[1735739345129,8.5216984,190.49,190.43,8.5216984]
[1735739345317,8.5216984,190.49,190.43,11.1522984]
[1735739346123,8.5216984,190.49,190.43,2.6306]
[1735739346324,8.5216984,190.49,190.42,2.96]
[1735739346528,8.5216984,190.49,190.42,5.5908]
[1735739347030,8.5216984,190.47,190.39,11.4816984]
[1735739347224,8.5216984,190.45,190.39,8.5216984]
[1735739347820,2.6307,190.44,190.39,11.1527984]
[1735739348022,8.5216984,190.45,190.39,2.6311]
[1735739348933,2.6307,190.43,190.39,2.6311]
[1735739349233,2.6305,190.45,190.4,11.1527984]
[1735739350130,8.5216984,190.46,190.39,2.6312]
[1735739350328,8.5216984,190.46,190.39,11.1528984]
[1735739350522,2.6306,190.44,190.39,11.1528984]
[1735739351225,2.6306,190.44,190.4,2.631]
[1735739351629,8.5216984,190.46,190.39,8.5216984]
[1735739351826,8.5216984,190.46,190.41,2.6308]
[1735739353524,2.6304,190.45,190.41,2.6308]
[1735739356128,8.5216984,190.46,190.39,8.5216984]
[1735739356331,2.6306,190.44,190.39,8.5216984]
[1735739356828,2.6306,190.44,190.39,11.1527984]
[1735739359236,8.5216984,190.46,190.39,11.1527984]
[1735739359437,2.6308,190.43,190.39,11.1527984]
[1735739359839,2.96,190.48,190.38,2.96]
[1735739359840,8.5216984,190.44,190.38,2.96]
[1735739360040,2.6311,190.41,190.38,2.96]
[1735739361040,8.5216984,190.44,190.38,2.96]
[1735739361336,2.6312,190.4,190.36,14.1132984]
[1735739363445,2.6313,190.39,190.35,2.6318]
[1735739363635,2.6313,190.39,190.36,5.05034648]
[1735739363835,8.5216984,190.42,190.36,13.57204488]
[1735739364044,11.1523984,190.44,190.39,2.6311]
[1735739365944,8.5216984,190.44,190.39,2.6311]
[1735739366144,2.6307,190.43,190.39,2.6311]
[1735739370447,2.6306,190.44,190.39,11.1527984]
[1735739371852,2.6307,190.43,190.39,11.1527984]
[1735739372045,2.6307,190.43,190.39,8.5216984]
[1735739373445,2.6303,190.46,190.41,2.6309]
[1735739374552,2.6304,190.45,190.41,2.6309]
[1735739377952,2.6304,190.45,190.38,2.96]
[1735739377953,8.5216984,190.47,190.38,2.96]
[1735739378152,2.6308,190.43,190.39,8.5216984]
[1735739380553,2.6309,190.42,190.39,8.5216984]
[1735739384856,2.6307,190.44,190.4,2.631]
[1735739385954,2.6305,190.45,190.41,2.6309]
[1735739388059,8.5216984,190.47,190.38,2.96]
[1735739388362,2.6307,190.44,190.4,2.6311]
[1735739390062,2.6308,190.43,190.38,5.5913]
[1735739390252,8.5216984,190.45,190.38,14.1129984]
[1735739390757,2.6307,190.43,190.38,14.1129984]
[1735739391760,2.6307,190.43,190.38,11.4816984]
[1735739391960,2.6307,190.43,190.39,2.6312]
[1735739392554,2.6309,190.42,190.39,2.6312]
[1735739394863,2.6309,190.42,190.38,8.5216984]
[1735739395058,2.6309,190.42,190.38,2.6313]
[1735739398964,8.5216984,190.43,190.36,2.96]
[1735739399169,2.631,190.41,190.37,7.68410939]
[1735739399569,2.631,190.41,190.37,2.6315]
[1735739400769,2.6312,190.4,190.36,2.6317]
[1735739401563,2.6312,190.4,190.34,61.57733185]
[1735739401564,2.6313,190.39,190.35,2.6318]
[1735739401772,8.5216984,190.39,190.25,121.03158345]
[1735739401967,8.5216984,190.37,190.31,2.96]
[1735739402164,2.6317,190.36,190.31,5.5923]
[1735739402870,2.6317,190.36,190.31,2.6323]
[1735739406469,2.6318,190.35,190.3,11.1541984]
[1735739407965,8.5216984,190.33,190.27,3.1584]
[1735739408170,2.6324,190.31,190.26,11.1546984]
[1735739408371,8.5216984,190.31,190.22,48.99866132]
[1735739408585,8.5216984,190.29,190.23,2.96]
[1735739408875,8.5216984,190.29,190.22,57.52035972]
[1735739409076,8.5216984,190.29,190.22,60.48035972]
[1735739409375,2.6328,190.28,190.23,2.6333]
[1735739409577,8.5216984,190.29,190.22,51.95866132]
[1735739409776,8.5216984,190.29,190.22,60.48035972]
[1735739410472,8.5216984,190.27,190.22,57.52035972]
[1735739410674,8.5216984,190.27,190.22,8.5216984]
[1735739411072,2.633,190.27,190.24,8.5216984]
[1735739411271,4.6587,190.33,190.26,8.5216984]
[1735739411475,13.1803984,190.33,190.26,8.5216984]
[1735739411678,11.1541984,190.31,190.26,8.5216984]
[1735739412677,11.1541984,190.31,190.25,2.6332]
[1735739414674,2.6327,190.29,190.24,11.1549984]
[1735739414978,11.1543984,190.29,190.24,2.6333]
[1735739415575,11.1546984,190.27,190.22,2.6335]
[1735739419783,2.6333,190.24,190.2,10.1525984]
[1735739419985,2.6333,190.24,190.19,60.16043266]
[1735739422779,8.5216984,190.25,190.19,60.16043266]
[1735739422976,8.5216984,190.23,190.17,11.1558984]
[1735739423180,8.5216984,190.21,190.14,2.96]
[1735739423385,8.5216984,190.21,190.14,11.4816984]
[1735739423985,2.96,190.24,190.16,8.5216984]
[1735739424288,2.96,190.27,190.18,8.5216984]
[1735739424481,8.5216984,190.24,190.18,8.5216984]
[1735739424680,11.1549984,190.24,190.12,2.96]
[1735739424883,11.1549984,190.24,190.17,8.5216984]
[1735739425288,11.1547984,190.26,190.19,8.5216984]
[1735739425490,2.96,190.27,190.21,8.5216984]
[1735739425986,5.593,190.27,190.22,2.6335]
[1735739427387,2.96,190.27,190.22,2.6335]
[1735739427581,2.633,190.26,190.22,2.6335]
[1735739430989,11.1546984,190.26,190.2,2.6337]
[1735739431188,8.5216984,190.26,190.2,2.6337]
[1735739431390,2.6332,190.25,190.2,2.6337]
[1735739431589,8.5216984,190.26,190.19,11.1556984]
[1735739432594,2.6334,190.24,190.19,11.1556984]
[1735739433195,2.6334,190.24,190.19,8.5216984]